[Event "African Open (w)"]
[Site "followchess.com"]
[Date "2022.09.20"]
[Round "3"]
[White "OLORUNTOLA, Oluwatobiloba"]
[Black "Mbatha, Constance"]
[Result "1/2-1/2"]
[ECO "A28"]
[WhiteElo "1918"]
[BlackElo "1613"]
[PlyCount "118"]
[EventDate "2022.??.??"]
[TimeControl "5400+30"]

1. Nf3 {[%emt 0:00:10]} Nc6 {[%emt 0:00:16]} 2. c4 {[%emt 0:00:17]} Nf6 {
[%emt 0:00:28]} 3. Nc3 {[%emt 0:00:20]} e5 {[%emt 0:00:10]} 4. d3 {[%emt 0:01:
58]} Be7 {[%emt 0:00:18]} 5. g3 {[%emt 0:00:14]} h6 {[%emt 0:00:21]} 6. Bg2 {
[%emt 0:00:06]} O-O {[%emt 0:00:07]} 7. O-O {[%emt 0:00:33]} d6 {[%emt 0:00:54]
} 8. e3 {[%emt 0:01:51]} Bg4 {[%emt 0:03:02]} 9. Qd2 {[%emt 0:01:07]} Qd7 {
[%emt 0:02:39]} 10. a3 {[%emt 0:00:59]} Rad8 {[%emt 0:04:41]} 11. b4 {[%emt 0:
00:41]} b6 {[%emt 0:01:14]} 12. Bb2 {[%emt 0:00:49]} Rfe8 {[%emt 0:01:38]} 13.
Rac1 {[%emt 0:11:36]} Bf8 {[%emt 0:00:30]} 14. Nd5 {[%emt 0:03:51]} Nh7 {
[%emt 0:01:58]} 15. e4 {[%emt 0:05:11]} Nb8 {[%emt 0:04:13]} 16. d4 {[%emt 0:
06:59]} c6 {[%emt 0:02:12]} 17. Ne3 {[%emt 0:03:09]} exd4 {[%emt 0:02:00]} 18.
Nxd4 {[%emt 0:02:47]} c5 {[%emt 0:04:27]} 19. Ne2 {[%emt 0:08:08]} Bxe2 {
[%emt 0:01:03]} 20. Qxe2 {[%emt 0:00:02]} Ng5 {[%emt 0:00:38]} 21. Qd3 {
[%emt 0:07:58]} Nc6 {[%emt 0:03:13]} 22. h4 {[%emt 0:07:19]} Ne6 {[%emt 0:00:
37]} 23. b5 {[%emt 0:07:54]} Nb8 {[%emt 0:02:19]} 24. Rcd1 {[%emt 0:01:34]} Nc7
{[%emt 0:01:53]} 25. Nf5 {[%emt 0:03:35]} Qe6 {[%emt 0:01:35]} 26. f3 {[%emt 0:
02:37]} Nd7 {[%emt 0:05:10]} 27. Qc3 {[%emt 0:06:33]} Qg6 {[%emt 0:16:14]} 28.
h5 {[%emt 0:01:43]} Qh7 {[%emt 0:03:05]} 29. Nxd6 {[%emt 0:01:03]} Bxd6 {
[%emt 0:01:17]} 30. Rxd6 {[%emt 0:00:03]} Nf6 {[%emt 0:00:23]} 31. Qd2 {
[%emt 0:03:26]} Ne6 {[%emt 0:01:09]} 32. Bxf6 {[%emt 0:04:21]} gxf6 {[%emt 0:
00:44]} 33. Bh3 {[%emt 0:01:41]} Nd4 {[%emt 0:00:13]} 34. Rxd8 {[%emt 0:00:31]}
Rxd8 {[%emt 0:00:01]} 35. Qe3 {[%emt 0:01:00]} Qg7 {[%emt 0:00:13]} 36. Kh2 {
[%emt 0:01:09]} Qf8 {[%emt 0:02:55]} 37. Qf4 {[%emt 0:01:08]} Qg7 {[%emt 0:00:
45]} 38. Qc7 {[%emt 0:02:09]} Ne6 {[%emt 0:06:17]} 39. Bxe6 {[%emt 0:01:37]}
Rd2+ {[%emt 0:00:19]} 40. Kh3 {[%emt 0:01:12]} fxe6 {[%emt 0:00:39]} 41. Qf4 {
[%emt 0:00:00]} Rd4 {[%emt 0:00:00]} 42. Rc1 {[%emt 0:00:00]} Rd3 {[%emt 0:00:
00]} 43. Rc2 {[%emt 0:00:00]} e5 {[%emt 0:00:00]} 44. Qf5 {[%emt 0:00:00]} Kf7
{[%emt 0:00:00]} 45. g4 {[%emt 0:00:00]} Ke7 {[%emt 0:00:00]} 46. Kg3 {[%emt 0:
00:00]} Qg5 {[%emt 0:00:00]} 47. Qxg5 {[%emt 0:00:00]} fxg5 {[%emt 0:00:00]}
48. a4 {[%emt 0:00:00]} Ra3 {[%emt 0:00:00]} 49. Kf2 {[%emt 0:00:00]} Rxa4 {
[%emt 0:00:00]} 50. Rc3 {[%emt 0:00:00]} Ra1 {[%emt 0:00:00]} 51. Ke2 {[%emt 0:
00:00]} Ra2+ {[%emt 0:00:00]} 52. Kd3 {[%emt 0:00:00]} Ke6 {[%emt 0:00:00]} 53.
Rc1 {[%emt 0:00:00]} Ra3+ {[%emt 0:00:00]} 54. Ke2 {[%emt 0:00:00]} Ra4 {
[%emt 0:00:00]} 55. Rc3 {[%emt 0:00:00]} Ra1 {[%emt 0:00:00]} 56. Kd2 {[%emt 0:
00:00]} Ra2+ {[%emt 0:00:00]} 57. Kc1 {[%emt 0:00:09]} Ra4 {[%emt 0:00:00]} 58.
Kb2 {[%emt 0:00:44]} Rb4+ {[%emt 0:00:00]} 59. Kc2 {[%emt 0:00:43]} Ra4 {
[%emt 0:00:00]} 1/2-1/2

[Event "African Open (w)"]
[Site "followchess.com"]
[Date "2022.09.20"]
[Round "3"]
[White "Likando Namakau"]
[Black "Ofowino, Toritsemuwa"]
[Result "0-1"]
[ECO "D11"]
[WhiteElo "1527"]
[BlackElo "1857"]
[PlyCount "60"]
[EventDate "2022.??.??"]
[TimeControl "5400+30"]

1. d4 {[%emt 0:00:31]} d5 {[%emt 0:00:15]} 2. Nf3 {[%emt 0:00:23]} c6 {[%emt 0:
00:43]} 3. c4 {[%emt 0:03:10]} Nf6 {[%emt 0:00:29]} 4. e3 {[%emt 0:00:51]} a6 {
[%emt 0:01:22]} 5. Nc3 {[%emt 0:00:51]} Bf5 {[%emt 0:01:50]} 6. Be2 {[%emt 0:
02:44]} h6 {[%emt 0:00:45]} 7. Qb3 {[%emt 0:01:14]} Ra7 {[%emt 0:02:12]} 8. O-O
{[%emt 0:02:55]} e6 {[%emt 0:00:20]} 9. Ne5 {[%emt 0:00:43]} Nbd7 {[%emt 0:02:
28]} 10. f4 {[%emt 0:00:47]} dxc4 {[%emt 0:00:28]} 11. Bxc4 {[%emt 0:01:40]}
Be7 {[%emt 0:02:43]} 12. Ne2 {[%emt 0:02:23]} Ne4 {[%emt 0:26:56]} 13. Bd3 {
[%emt 0:02:59]} Nxe5 {[%emt 0:10:40]} 14. fxe5 {[%emt 0:01:08]} Nc5 {[%emt 0:
00:35]} 15. dxc5 {[%emt 0:00:56]} Qxd3 {[%emt 0:00:37]} 16. Qb6 {[%emt 0:06:18]
} Qxe2 {[%emt 0:05:44]} 17. Qxa7 {[%emt 0:02:53]} Bd3 {[%emt 0:06:20]} 18. Qb8+
{[%emt 0:03:26]} Bd8 {[%emt 0:00:46]} 19. Bd2 {[%emt 0:00:44]} Qxd2 {[%emt 0:
02:22]} 20. Rfd1 {[%emt 0:00:18]} Qxe3+ {[%emt 0:03:44]} 21. Kh1 {[%emt 0:00:
03]} O-O {[%emt 0:00:32]} 22. Qxb7 {[%emt 0:02:10]} Be4 {[%emt 0:01:41]} 23.
Qxa6 {[%emt 0:07:18]} Qxc5 {[%emt 0:02:32]} 24. a4 {[%emt 0:18:00]} Qxe5 {
[%emt 0:00:26]} 25. Qa7 {[%emt 0:03:47]} Bc7 {[%emt 0:02:52]} 26. Qg1 {[%emt 0:
00:56]} Rb8 {[%emt 0:02:15]} 27. Rd2 {[%emt 0:01:36]} Rxb2 {[%emt 0:00:57]} 28.
Rxb2 {[%emt 0:00:30]} Qxb2 {[%emt 0:00:12]} 29. a5 {[%emt 0:00:42]} Bxg2+ {
[%emt 0:00:35]} 30. Qxg2 {[%emt 0:07:14]} Qxa1+ {[%emt 0:00:07]} 0-1

[Event "African Open (w)"]
[Site "followchess.com"]
[Date "2022.09.20"]
[Round "3"]
[White "ONOJA, Iyefu Joy"]
[Black "Michael Bridget"]
[Result "1-0"]
[ECO "A46"]
[WhiteElo "1762"]
[BlackElo "1800"]
[PlyCount "37"]
[EventDate "2022.??.??"]
[TimeControl "5400+30"]

1. d4 {[%emt 0:00:10]} e6 {[%emt 0:00:40]} 2. Nf3 {[%emt 0:00:49]} Nf6 {
[%emt 0:01:19]} 3. Bf4 {[%emt 0:01:29]} d5 {[%emt 0:00:29]} 4. Nbd2 {[%emt 0:
00:28]} Bd6 {[%emt 0:00:34]} 5. Bg3 {[%emt 0:00:25]} c5 {[%emt 0:01:01]} 6. c3
{[%emt 0:02:27]} Nc6 {[%emt 0:00:27]} 7. e3 {[%emt 0:00:28]} b6 {[%emt 0:00:48]
} 8. Bb5 {[%emt 0:00:39]} Bb7 {[%emt 0:04:19]} 9. Qa4 {[%emt 0:00:34]} Rc8 {
[%emt 0:07:21]} 10. Qxa7 {[%emt 0:02:55]} Nd7 {[%emt 0:13:13]} 11. Bxc6 {
[%emt 0:02:33]} Bxc6 {[%emt 0:03:56]} 12. Bxd6 {[%emt 0:00:17]} Nf6 {[%emt 0:
06:07]} 13. dxc5 {[%emt 0:01:12]} Ne4 {[%emt 0:02:04]} 14. Nxe4 {[%emt 0:00:23]
} dxe4 {[%emt 0:00:07]} 15. Ne5 {[%emt 0:00:06]} Bd7 {[%emt 0:02:17]} 16. c6 {
[%emt 0:01:27]} Rxc6 {[%emt 0:01:35]} 17. Nxc6 {[%emt 0:00:11]} Bxc6 {[%emt 0:
00:05]} 18. O-O-O {[%emt 0:00:20]} Bd5 {[%emt 0:01:59]} 19. Ba3 {[%emt 0:02:51]
} 1-0

[Event "African Open (w)"]
[Site "followchess.com"]
[Date "2022.09.20"]
[Round "3"]
[White "Wafa, Shahenda"]
[Black "Amadasun, Rosemary"]
[Result "1/2-1/2"]
[ECO "C44"]
[WhiteElo "2110"]
[BlackElo "1807"]
[PlyCount "123"]
[EventDate "2022.??.??"]
[TimeControl "5400+30"]

1. e4 {[%emt 0:00:03]} e5 {[%emt 0:00:18]} 2. Nf3 {[%emt 0:00:08]} Nc6 {
[%emt 0:00:11]} 3. d4 {[%emt 0:00:17]} exd4 {[%emt 0:00:20]} 4. Bc4 {[%emt 0:
00:07]} Be7 {[%emt 0:00:52]} 5. Nxd4 {[%emt 0:00:54]} d6 {[%emt 0:01:01]} 6.
Nxc6 {[%emt 0:04:41]} bxc6 {[%emt 0:00:07]} 7. Qh5 {[%emt 0:02:46]} g6 {
[%emt 0:01:10]} 8. Qf3 {[%emt 0:01:56]} Be6 {[%emt 0:04:08]} 9. Bxe6 {[%emt 0:
02:18]} fxe6 {[%emt 0:00:04]} 10. Qc3 {[%emt 0:00:16]} Nf6 {[%emt 0:08:03]} 11.
Qxc6+ {[%emt 0:00:37]} Kf7 {[%emt 0:00:27]} 12. Nc3 {[%emt 0:02:37]} Qb8 {
[%emt 0:05:14]} 13. O-O {[%emt 0:02:17]} h5 {[%emt 0:02:44]} 14. h3 {[%emt 0:
07:07]} Qb6 {[%emt 0:04:25]} 15. Qc4 {[%emt 0:06:20]} c6 {[%emt 0:04:15]} 16.
Qe2 {[%emt 0:03:28]} Nd7 {[%emt 0:06:26]} 17. Rb1 {[%emt 0:04:57]} a5 {[%emt 0:
03:28]} 18. Be3 {[%emt 0:00:40]} Qa6 {[%emt 0:00:25]} 19. Qd2 {[%emt 0:02:30]}
Kg7 {[%emt 0:05:25]} 20. f4 {[%emt 0:01:00]} Nf6 {[%emt 0:05:45]} 21. f5 {
[%emt 0:01:08]} gxf5 {[%emt 0:00:51]} 22. exf5 {[%emt 0:00:33]} e5 23. Qf2 {
[%emt 0:05:40]} Kf7 {[%emt 0:01:45]} 24. Qf3 {[%emt 0:14:08]} Rag8 {[%emt 0:03:
06]} 25. Bf2 {[%emt 0:05:18]} d5 {[%emt 0:01:30]} 26. Rfe1 {[%emt 0:02:19]} Bd6
{[%emt 0:01:34]} 27. Rbd1 {[%emt 0:06:50]} Bb8 {[%emt 0:01:24]} 28. Na4 {
[%emt 0:04:14]} e4 {[%emt 0:04:14]} 29. Qb3 {[%emt 0:10:10]} Qc8 {[%emt 0:02:
53]} 30. Nc5 {[%emt 0:00:53]} Rg5 {[%emt 0:03:14]} 31. Qb7+ {[%emt 0:05:49]}
Qxb7 {[%emt 0:03:14]} 32. Nxb7 {[%emt 0:00:01]} Bc7 {[%emt 0:00:50]} 33. Bd4 {
[%emt 0:01:44]} Rhg8 {[%emt 0:03:03]} 34. Re2 {[%emt 0:00:30]} Nd7 {[%emt 0:03:
33]} 35. Nc5 {[%emt 0:01:40]} Nxc5 {[%emt 0:00:33]} 36. Bxc5 {[%emt 0:00:01]}
Rxf5 {[%emt 0:00:31]} 37. Rf1 {[%emt 0:00:50]} Rxf1+ {[%emt 0:01:12]} 38. Kxf1
{[%emt 0:00:01]} Ke6 {[%emt 0:00:13]} 39. Ke1 {[%emt 0:00:36]} Bd6 {[%emt 0:00:
58]} 40. Bxd6 {[%emt 0:00:26]} Kxd6 {[%emt 0:00:03]} 41. a4 {[%emt 0:00:00]}
Ke5 {[%emt 0:00:00]} 42. c3 {[%emt 0:00:00]} c5 {[%emt 0:00:00]} 43. Rf2 {
[%emt 0:00:00]} d4 {[%emt 0:00:00]} 44. cxd4+ {[%emt 0:00:00]} cxd4 45. Rc2 Kd5
{[%emt 0:00:00]} 46. Rf2 {[%emt 0:00:00]} Kc4 {[%emt 0:00:00]} 47. Rc2+ {
[%emt 0:00:00]} Kb4 {[%emt 0:00:00]} 48. Rd2 {[%emt 0:00:00]} Rd8 {[%emt 0:00:
00]} 49. g4 {[%emt 0:00:00]} hxg4 {[%emt 0:00:00]} 50. hxg4 {[%emt 0:00:00]}
Kc4 {[%emt 0:00:00]} 51. g5 {[%emt 0:00:00]} e3 {[%emt 0:00:00]} 52. Rg2 {
[%emt 0:00:00]} d3 {[%emt 0:00:00]} 53. g6 {[%emt 0:00:00]} e2 {[%emt 0:00:00]}
54. Kd2 {[%emt 0:00:00]} Re8 {[%emt 0:00:00]} 55. Rg1 {[%emt 0:00:00]} Kb3 {
[%emt 0:00:00]} 56. g7 {[%emt 0:00:00]} Kxb2 {[%emt 0:00:00]} 57. g8=Q {
[%emt 0:00:00]} e1=Q+ 58. Rxe1 {[%emt 0:00:00]} Rxg8 {[%emt 0:00:00]} 59. Kxd3
{[%emt 0:00:00]} Rg4 {[%emt 0:00:00]} 60. Re2+ {[%emt 0:00:00]} Kb3 {[%emt 0:
00:00]} 61. Re1 {[%emt 0:00:00]} Rxa4 {[%emt 0:00:00]} 62. Rb1+ {[%emt 0:00:00]
} 1/2-1/2

[Event "African Open (w)"]
[Site "followchess.com"]
[Date "2022.09.21"]
[Round "4"]
[White "Amadasun, Rosemary"]
[Black "Paulo, Jemima"]
[Result "0-1"]
[ECO "B70"]
[WhiteElo "1807"]
[BlackElo "1886"]
[PlyCount "60"]
[EventDate "2022.??.??"]
[TimeControl "5400+30"]

1. e4 {[%emt 0:00:17]} c5 {[%emt 0:00:07]} 2. Nf3 {[%emt 0:00:14]} d6 {[%emt 0:
00:09]} 3. d4 {[%emt 0:00:10]} cxd4 {[%emt 0:00:09]} 4. Nxd4 {[%emt 0:00:15]}
Nf6 {[%emt 0:00:19]} 5. Nc3 {[%emt 0:00:11]} g6 {[%emt 0:00:10]} 6. Be2 {
[%emt 0:00:59]} Bg7 {[%emt 0:00:11]} 7. Be3 {[%emt 0:00:22]} O-O {[%emt 0:01:
14]} 8. Qd2 {[%emt 0:00:19]} Nc6 {[%emt 0:00:18]} 9. h4 {[%emt 0:02:06]} h5 {
[%emt 0:04:11]} 10. f3 {[%emt 0:01:38]} d5 {[%emt 0:00:26]} 11. exd5 {[%emt 0:
10:27]} Nxd5 {[%emt 0:00:12]} 12. Nxc6 {[%emt 0:03:44]} bxc6 {[%emt 0:00:22]}
13. Nxd5 {[%emt 0:03:29]} cxd5 {[%emt 0:00:09]} 14. c3 {[%emt 0:00:42]} Qd6 {
[%emt 0:01:54]} 15. g4 {[%emt 0:07:45]} hxg4 {[%emt 0:01:18]} 16. fxg4 Bxg4 17.
O-O-O {[%emt 0:01:09]} Bxe2 {[%emt 0:05:20]} 18. Qxe2 {[%emt 0:00:58]} Rfc8 {
[%emt 0:06:21]} 19. Qd3 {[%emt 0:11:16]} Rab8 {[%emt 0:02:25]} 20. Rd2 {
[%emt 0:06:07]} Bxc3 {[%emt 0:03:12]} 21. bxc3 {[%emt 0:05:04]} Qa3+ {[%emt 0:
00:09]} 22. Kd1 {[%emt 0:01:48]} Rxc3 {[%emt 0:00:08]} 23. Qxc3 {[%emt 0:10:30]
} Qxc3 {[%emt 0:00:13]} 24. Ke2 {[%emt 0:00:50]} Rb2 {[%emt 0:00:09]} 25. Rhd1
{[%emt 0:00:31]} Qc4+ {[%emt 0:00:20]} 26. Ke1 {[%emt 0:01:03]} Qxh4+ {[%emt 0:
00:11]} 27. Ke2 {[%emt 0:00:14]} Qc4+ {[%emt 0:01:01]} 28. Ke1 {[%emt 0:00:06]}
Rxa2 {[%emt 0:00:22]} 29. Bd4 {[%emt 0:01:26]} f6 {[%emt 0:00:12]} 30. Bb2 {
[%emt 0:00:42]} Qb4 {[%emt 0:00:07]} 0-1

[Event "African Open (w)"]
[Site "followchess.com"]
[Date "2022.09.21"]
[Round "4"]
[White "Van Zyl, Charlize"]
[Black "Wafa, Shahenda"]
[Result "1/2-1/2"]
[ECO "C50"]
[WhiteElo "1710"]
[BlackElo "2110"]
[PlyCount "152"]
[EventDate "2022.??.??"]
[TimeControl "5400+30"]

1. e4 {[%emt 0:00:09]} e5 {[%emt 0:00:17]} 2. Nf3 {[%emt 0:00:08]} Nc6 {
[%emt 0:00:07]} 3. Bc4 {[%emt 0:00:11]} Bc5 {[%emt 0:00:40]} 4. O-O {[%emt 0:
00:17]} Nf6 {[%emt 0:00:24]} 5. d3 {[%emt 0:00:12]} h6 {[%emt 0:04:14]} 6. c3 {
[%emt 0:00:46]} d6 {[%emt 0:02:40]} 7. a4 {[%emt 0:04:48]} a5 {[%emt 0:02:30]}
8. Be3 {[%emt 0:04:21]} Ba7 {[%emt 0:03:19]} 9. Nbd2 {[%emt 0:02:20]} O-O {
[%emt 0:00:36]} 10. h3 {[%emt 0:04:04]} Re8 {[%emt 0:11:47]} 11. Qb3 {[%emt 0:
03:06]} Rf8 {[%emt 0:06:15]} 12. d4 {[%emt 0:10:42]} Qe7 {[%emt 0:02:47]} 13.
Rfe1 {[%emt 0:01:55]} Nh5 {[%emt 0:05:34]} 14. Rad1 {[%emt 0:03:26]} Qf6 {
[%emt 0:05:41]} 15. dxe5 {[%emt 0:12:44]} Nxe5 {[%emt 0:04:37]} 16. Nxe5 {
[%emt 0:08:06]} dxe5 {[%emt 0:02:19]} 17. Bxa7 {[%emt 0:01:28]} Rxa7 {[%emt 0:
00:05]} 18. Re3 {[%emt 0:01:38]} Nf4 {[%emt 0:04:07]} 19. Kh2 {[%emt 0:04:48]}
Qh4 {[%emt 0:09:03]} 20. Rf1 {[%emt 0:07:45]} Ra8 {[%emt 0:03:03]} 21. Qb5 {
[%emt 0:03:01]} Qe7 {[%emt 0:00:43]} 22. Nf3 {[%emt 0:02:51]} Re8 {[%emt 0:00:
39]} 23. Rd1 {[%emt 0:00:43]} b6 {[%emt 0:03:30]} 24. Qc6 {[%emt 0:02:56]} Rb8
{[%emt 0:02:53]} 25. Bb5 {[%emt 0:02:06]} Bb7 {[%emt 0:03:29]} 26. Qd7 {
[%emt 0:02:31]} Qc5 {[%emt 0:07:50]} 27. Qxe8+ {[%emt 0:02:34]} Rxe8 {[%emt 0:
00:12]} 28. Bxe8 {[%emt 0:00:04]} Qe7 {[%emt 0:02:42]} 29. Bb5 {[%emt 0:00:59]}
Bc8 {[%emt 0:01:46]} 30. Rd2 {[%emt 0:04:57]} Kh7 {[%emt 0:00:34]} 31. Re1 {
[%emt 0:00:38]} Qf6 32. Re3 {[%emt 0:03:25]} Qg6 {[%emt 0:06:01]} 33. Ne1 {
[%emt 0:02:00]} Qe6 {[%emt 0:02:47]} 34. Nc2 {[%emt 0:02:10]} c6 {[%emt 0:00:
33]} 35. Bf1 {[%emt 0:01:00]} Qb3 {[%emt 0:00:25]} 36. Na3 {[%emt 0:01:22]}
Qxa4 {[%emt 0:00:35]} 37. Nc4 {[%emt 0:00:32]} Qa1 {[%emt 0:01:00]} 38. Bd3 {
[%emt 0:01:14]} Nxd3 {[%emt 0:01:09]} 39. Rexd3 {[%emt 0:00:32]} Ba6 {[%emt 0:
00:26]} 40. Rd1 {[%emt 0:00:50]} Qa2 {[%emt 0:00:24]} 41. Nxe5 {[%emt 0:00:41]}
Bxd3 {[%emt 0:00:10]} 42. Nxd3 {[%emt 0:00:07]} Qa4 {[%emt 0:00:28]} 43. Re1 {
[%emt 0:00:49]} Qc2 {[%emt 0:00:42]} 44. Re3 {[%emt 0:00:44]} c5 {[%emt 0:00:
24]} 45. Kg3 {[%emt 0:00:00]} f6 {[%emt 0:00:00]} 46. f4 {[%emt 0:00:00]} c4 {
[%emt 0:00:00]} 47. Nf2 {[%emt 0:00:00]} Qxb2 {[%emt 0:00:00]} 48. e5 {[%emt 0:
00:00]} Qd2 {[%emt 0:00:00]} 49. Kf3 {[%emt 0:00:00]} Qd5+ {[%emt 0:00:00]} 50.
Ke2 {[%emt 0:00:00]} fxe5 {[%emt 0:00:00]} 51. fxe5 {[%emt 0:00:00]} Qe6 {
[%emt 0:00:00]} 52. Kd2 {[%emt 0:00:00]} a4 {[%emt 0:00:00]} 53. Kc1 {[%emt 0:
00:00]} Kg8 {[%emt 0:00:00]} 54. Nd1 {[%emt 0:00:00]} Kf8 {[%emt 0:00:00]} 55.
Rf3+ {[%emt 0:00:00]} Ke8 {[%emt 0:00:00]} 56. Ne3 {[%emt 0:00:00]} Qxe5 {
[%emt 0:00:00]} 57. Nxc4 {[%emt 0:00:00]} Qe1+ {[%emt 0:00:00]} 58. Kc2 {
[%emt 0:00:00]} Qe2+ {[%emt 0:00:00]} 59. Nd2 {[%emt 0:00:00]} Qxg2 {[%emt 0:
00:00]} 60. h4 {[%emt 0:00:00]} Qh1 {[%emt 0:00:00]} 61. Rf4 {[%emt 0:00:00]}
a3 {[%emt 0:00:00]} 62. Ra4 {[%emt 0:00:00]} Qa1 {[%emt 0:00:00]} 63. Nc4 {
[%emt 0:00:00]} Qa2+ {[%emt 0:00:00]} 64. Kc1 {[%emt 0:00:00]} Qb3 65. Ra8+ Kf7
{[%emt 0:00:00]} 66. Nxa3 {[%emt 0:00:00]} Qxc3+ {[%emt 0:00:00]} 67. Nc2 {
[%emt 0:00:00]} Qc4 {[%emt 0:00:00]} 68. Ra7+ {[%emt 0:00:00]} Kf6 {[%emt 0:00:
00]} 69. Rb7 {[%emt 0:00:00]} Qc6 {[%emt 0:00:00]} 70. Rb8 {[%emt 0:00:47]} Qc7
{[%emt 0:00:00]} 71. Rf8+ {[%emt 0:00:29]} Kg6 {[%emt 0:00:00]} 72. Kb1 {
[%emt 0:01:04]} Kh5 73. Ne3 {[%emt 0:01:07]} Kxh4 {[%emt 0:00:57]} 74. Re8 {
[%emt 0:03:03]} g5 {[%emt 0:01:05]} 75. Nf5+ {[%emt 0:01:20]} Kh5 {[%emt 0:02:
55]} 76. Rh8 {[%emt 0:01:37]} Qc6 {[%emt 0:00:42]} 1/2-1/2

[Event "African Open (w)"]
[Site "followchess.com"]
[Date "2022.09.21"]
[Round "4"]
[White "Vilhete, Vania Fausto Da T."]
[Black "ONOJA, Iyefu Joy"]
[Result "1/2-1/2"]
[ECO "D30"]
[WhiteElo "1718"]
[BlackElo "1762"]
[PlyCount "95"]
[EventDate "2022.??.??"]
[TimeControl "5400+30"]

1. d4 {[%emt 0:00:02]} d5 {[%emt 0:00:18]} 2. c4 {[%emt 0:00:06]} e6 {[%emt 0:
00:14]} 3. e3 {[%emt 0:00:18]} Nf6 {[%emt 0:00:20]} 4. Nf3 {[%emt 0:00:10]} Be7
{[%emt 0:01:15]} 5. Nc3 {[%emt 0:00:10]} Nbd7 {[%emt 0:00:16]} 6. Bd3 {[%emt 0:
00:25]} dxc4 {[%emt 0:03:37]} 7. Bxc4 {[%emt 0:00:08]} c5 {[%emt 0:00:21]} 8.
O-O {[%emt 0:00:36]} O-O {[%emt 0:01:02]} 9. Re1 {[%emt 0:00:27]} a6 {[%emt 0:
00:52]} 10. a4 {[%emt 0:03:18]} cxd4 {[%emt 0:04:45]} 11. exd4 {[%emt 0:01:10]}
Nb6 {[%emt 0:01:58]} 12. Bb3 {[%emt 0:00:39]} Nbd5 {[%emt 0:02:57]} 13. Bg5 {
[%emt 0:01:14]} b6 {[%emt 0:06:24]} 14. Nxd5 {[%emt 0:03:41]} exd5 {[%emt 0:00:
28]} 15. Ne5 {[%emt 0:04:14]} Bb7 {[%emt 0:01:23]} 16. Qf3 {[%emt 0:01:18]} Ne4
{[%emt 0:02:29]} 17. Bxe7 {[%emt 0:04:25]} Qxe7 {[%emt 0:00:15]} 18. Qe3 {
[%emt 0:08:31]} Qb4 {[%emt 0:08:51]} 19. Rad1 {[%emt 0:06:15]} Rac8 {[%emt 0:
06:45]} 20. f3 {[%emt 0:17:00]} Nc3 {[%emt 0:05:29]} 21. Qd2 {[%emt 0:08:43]}
Qxb3 {[%emt 0:02:34]} 22. bxc3 {[%emt 0:00:14]} Qxa4 {[%emt 0:08:41]} 23. Ra1 {
[%emt 0:01:31]} Qb3 {[%emt 0:00:41]} 24. Reb1 {[%emt 0:01:53]} Qxc3 {[%emt 0:
00:30]} 25. Qxc3 {[%emt 0:00:09]} Rxc3 {[%emt 0:00:10]} 26. Rxb6 {[%emt 0:00:
24]} Bc8 {[%emt 0:03:17]} 27. Rd6 {[%emt 0:00:51]} Be6 {[%emt 0:00:48]} 28.
Rdxa6 {[%emt 0:01:16]} Rc2 {[%emt 0:01:47]} 29. Nd3 {[%emt 0:11:16]} Rd2 {
[%emt 0:01:23]} 30. Nc5 {[%emt 0:00:35]} Bc8 {[%emt 0:06:55]} 31. R6a4 {
[%emt 0:00:50]} Re8 {[%emt 0:00:15]} 32. Ra8 {[%emt 0:04:38]} Rxd4 {[%emt 0:02:
07]} 33. Nb7 {[%emt 0:01:02]} Rf8 {[%emt 0:01:49]} 34. Nd6 {[%emt 0:00:42]} Be6
{[%emt 0:00:45]} 35. Nb5 {[%emt 0:05:16]} Rd1+ 36. Rxd1 {[%emt 0:02:05]} Rc8
37. Rb8 Rxb8 {[%emt 0:01:45]} 38. Nc7 {[%emt 0:01:48]} Rd8 {[%emt 0:00:21]} 39.
Kf2 {[%emt 0:00:20]} Kf8 {[%emt 0:02:22]} 40. Ke3 {[%emt 0:00:20]} Rd7 {
[%emt 0:01:21]} 41. Nb5 {[%emt 0:00:18]} Ke7 {[%emt 0:00:20]} 42. Rc1 {[%emt 0:
01:42]} Rb7 {[%emt 0:01:29]} 43. Rc7+ {[%emt 0:06:55]} Rxc7 {[%emt 0:00:32]}
44. Nxc7 {[%emt 0:00:05]} Kd7 {[%emt 0:04:19]} 45. Na6 {[%emt 0:00:28]} Kd6 {
[%emt 0:01:03]} 46. Kd4 {[%emt 0:00:14]} Bc8 {[%emt 0:00:12]} 47. Nb4 {[%emt 0:
00:17]} Bb7 {[%emt 0:00:48]} 48. g3 {[%emt 0:01:37]} 1/2-1/2

[Event "African Open (w)"]
[Site "followchess.com"]
[Date "2022.09.21"]
[Round "4"]
[White "Ofowino, Toritsemuwa"]
[Black "Mudodo, Refiloe Hazel"]
[Result "1-0"]
[ECO "D02"]
[WhiteElo "1857"]
[BlackElo "1683"]
[PlyCount "57"]
[EventDate "2022.??.??"]
[TimeControl "5400+30"]

1. d4 {[%emt 0:00:14]} Nf6 {[%emt 0:00:24]} 2. Nf3 {[%emt 0:00:15]} d5 {
[%emt 0:00:33]} 3. c3 {[%emt 0:00:32]} c5 {[%emt 0:01:58]} 4. dxc5 {[%emt 0:00:
28]} e6 {[%emt 0:00:29]} 5. b4 {[%emt 0:00:16]} a5 {[%emt 0:01:19]} 6. e3 {
[%emt 0:00:36]} axb4 {[%emt 0:01:05]} 7. cxb4 {[%emt 0:00:14]} b6 {[%emt 0:01:
40]} 8. Bb5+ {[%emt 0:02:21]} Bd7 {[%emt 0:01:50]} 9. Bxd7+ {[%emt 0:00:41]}
Nbxd7 {[%emt 0:00:56]} 10. a4 {[%emt 0:01:35]} bxc5 {[%emt 0:03:38]} 11. b5 {
[%emt 0:00:52]} c4 {[%emt 0:01:13]} 12. O-O {[%emt 0:02:20]} Bb4 {[%emt 0:00:
37]} 13. Nd4 {[%emt 0:03:34]} Nb8 {[%emt 0:04:40]} 14. Bb2 {[%emt 0:10:22]} O-O
{[%emt 0:04:39]} 15. Nc3 {[%emt 0:02:37]} Qa5 {[%emt 0:03:12]} 16. Qc2 {
[%emt 0:02:19]} Rc8 {[%emt 0:03:40]} 17. Ra2 {[%emt 0:17:23]} Nfd7 {[%emt 0:07:
40]} 18. Rfa1 {[%emt 0:10:08]} Nc5 {[%emt 0:01:26]} 19. Nde2 {[%emt 0:00:43]}
Nb3 {[%emt 0:03:16]} 20. Rd1 {[%emt 0:01:40]} Nd7 {[%emt 0:02:47]} 21. e4 {
[%emt 0:00:36]} Nb6 {[%emt 0:05:27]} 22. exd5 {[%emt 0:04:31]} exd5 {[%emt 0:
10:57]} 23. Nxd5 {[%emt 0:07:51]} Nxd5 {[%emt 0:02:39]} 24. Rxd5 {[%emt 0:00:
09]} Nc5 {[%emt 0:01:16]} 25. Rd1 {[%emt 0:07:10]} c3 {[%emt 0:03:24]} 26. Nxc3
{[%emt 0:02:53]} Nxa4 {[%emt 0:11:09]} 27. Rxa4 {[%emt 0:00:30]} Qxa4 {[%emt 0:
06:42]} 28. Qxa4 {[%emt 0:00:35]} Rxa4 {[%emt 0:00:19]} 29. Nxa4 {[%emt 0:00:
08]} 1-0